[Event "Titled Tuesday Blitz August 09 Early 2022"]
[White "Hoffmann, Asa"]
[Black "Hartikainen, Jarmo"]
[WhiteFideId "2001470"]
[BlackFideId "503134"]
[WhiteElo "2117"]
[BlackElo "2137"]
[Result "1-0"]
[Round "07"]
[TimeControl "180+1"]
[Date "2022.08.09"]
[WhiteClock "0:01:00"]
[BlackClock "0:00:13"]

1. d4 {[%clk 0:02:56]}  Nf6 {[%clk 0:02:59]} 2. Bg5 {[%clk 0:02:52]}  Ne4 {[%clk 0:02:57]} 3. Bf4 {[%clk 0:02:52]}  d5 {[%clk 0:02:57]} 4. f3 {[%clk 0:02:52]}  Nd6 {[%clk 0:02:50]} 5. Nc3 {[%clk 0:02:51]}  c6 {[%clk 0:02:39]} 6. e4 {[%clk 0:02:50]}  dxe4 {[%clk 0:02:25]} 7. fxe4 {[%clk 0:02:50]}  g6 {[%clk 0:02:24]} 8. Nf3 {[%clk 0:02:49]}  Bg7 {[%clk 0:02:23]} 9. Qd2 {[%clk 0:02:49]}  b5 {[%clk 0:02:05]} 10. a3 {[%clk 0:02:46]}  a5 {[%clk 0:02:04]} 11. Be2 {[%clk 0:02:44]}  Bb7 {[%clk 0:01:57]} 12. e5 {[%clk 0:02:36]}  b4 {[%clk 0:01:33]} 13. Na4 {[%clk 0:02:27]}  Ne4 {[%clk 0:01:19]} 14. Qe3 {[%clk 0:02:27]}  c5 {[%clk 0:00:39]} 15. dxc5 {[%clk 0:02:18]}  O-O {[%clk 0:00:20]} 16. Rd1 {[%clk 0:02:07]}  Qc8 {[%clk 0:00:19]} 17. Nb6 {[%clk 0:02:06]}  Qc6 {[%clk 0:00:18]} 18. Nxa8 {[%clk 0:02:02]}  Bxa8 {[%clk 0:00:19]} 19. axb4 {[%clk 0:02:01]}  axb4 {[%clk 0:00:19]} 20. O-O {[%clk 0:01:50]}  Nd7 {[%clk 0:00:19]} 21. Rd4 {[%clk 0:01:29]}  Ndxc5 {[%clk 0:00:18]} 22. Rxb4 {[%clk 0:01:27]}  Rc8 {[%clk 0:00:18]} 23. Rc4 {[%clk 0:01:26]}  Qb5 {[%clk 0:00:16]} 24. b3 {[%clk 0:01:25]}  Qb6 {[%clk 0:00:15]} 25. Rd1 {[%clk 0:01:16]}  Bb7 {[%clk 0:00:14]} 26. h3 {[%clk 0:01:13]}  h5 {[%clk 0:00:15]} 27. Rdd4 {[%clk 0:01:09]}  Nc3 {[%clk 0:00:13]} 28. Qxc3 {[%clk 0:01:05]}  Na4 {[%clk 0:00:13]} 29. Rxc8+ {[%clk 0:01:03]}  Bxc8 {[%clk 0:00:13]} 30. Qxc8+ {[%clk 0:01:01]}  Kh7 {[%clk 0:00:13]} 31. Qd8 {[%clk 0:01:00]} 1-0


[Site "https://www.chess.com"]

[Event "Titled Tuesday Blitz August 09 Early 2022"]
[White "Hua, Lefong"]
[Black "Bilych, Olexiy"]
[WhiteFideId "2602253"]
[BlackFideId "14156504"]
[WhiteElo "2616"]
[BlackElo "2157"]
[Result "0-1"]
[Round "07"]
[TimeControl "180+1"]
[Date "2022.08.09"]
[WhiteClock "0:00:13"]
[BlackClock "0:00:11"]

1. d4 {[%clk 0:03:00]}  Nf6 {[%clk 0:03:00]} 2. c4 {[%clk 0:03:00]}  e6 {[%clk 0:03:00]} 3. Nc3 {[%clk 0:03:01]}  Bb4 {[%clk 0:03:00]} 4. f3 {[%clk 0:03:01]}  O-O {[%clk 0:02:55]} 5. a3 {[%clk 0:03:00]}  Bxc3+ {[%clk 0:02:43]} 6. bxc3 {[%clk 0:03:01]}  d5 {[%clk 0:02:40]} 7. cxd5 {[%clk 0:03:01]}  exd5 {[%clk 0:02:34]} 8. e3 {[%clk 0:03:01]}  Bf5 {[%clk 0:02:27]} 9. Bd3 {[%clk 0:03:00]}  Bxd3 {[%clk 0:02:27]} 10. Qxd3 {[%clk 0:03:01]}  c5 {[%clk 0:02:24]} 11. Ne2 {[%clk 0:03:01]}  Nc6 {[%clk 0:02:23]} 12. O-O {[%clk 0:03:01]}  Re8 {[%clk 0:02:22]} 13. Ng3 {[%clk 0:03:00]}  Rc8 {[%clk 0:02:17]} 14. Ra2 {[%clk 0:02:37]}  h5 {[%clk 0:02:14]} 15. Re2 {[%clk 0:02:28]}  g6 {[%clk 0:02:08]} 16. Bb2 {[%clk 0:02:20]}  h4 {[%clk 0:01:41]} 17. Nh1 {[%clk 0:02:18]}  Nh5 {[%clk 0:01:41]} 18. Nf2 {[%clk 0:02:11]}  Qe7 {[%clk 0:01:28]} 19. Rfe1 {[%clk 0:02:04]}  Qf6 {[%clk 0:01:18]} 20. Nh3 {[%clk 0:01:58]}  Rcd8 {[%clk 0:01:07]} 21. Rd1 {[%clk 0:01:51]}  Re6 {[%clk 0:00:59]} 22. e4 {[%clk 0:01:46]}  cxd4 {[%clk 0:00:54]} 23. cxd4 {[%clk 0:01:45]}  dxe4 {[%clk 0:00:51]} 24. fxe4 {[%clk 0:01:46]}  Ne5 {[%clk 0:00:44]} 25. Qb1 {[%clk 0:00:48]}  Nc4 {[%clk 0:00:40]} 26. Ba1 {[%clk 0:00:43]}  Nf4 {[%clk 0:00:36]} 27. Nxf4 {[%clk 0:00:39]}  Qxf4 {[%clk 0:00:36]} 28. d5 {[%clk 0:00:32]}  Ree8 {[%clk 0:00:17]} 29. Qd3 {[%clk 0:00:31]}  Ne5 {[%clk 0:00:16]} 30. Qd4 {[%clk 0:00:30]}  f6 {[%clk 0:00:16]} 31. Rf1 {[%clk 0:00:29]}  Qg5 {[%clk 0:00:15]} 32. h3 {[%clk 0:00:24]}  b6 {[%clk 0:00:13]} 33. Ref2 {[%clk 0:00:24]}  Rd6 {[%clk 0:00:13]} 34. Kh1 {[%clk 0:00:20]}  Kg7 {[%clk 0:00:13]} 35. Qd1 {[%clk 0:00:20]}  Re7 {[%clk 0:00:12]} 36. Bc3 {[%clk 0:00:19]}  a5 {[%clk 0:00:12]} 37. Bd2 {[%clk 0:00:18]}  Qg3 {[%clk 0:00:11]} 38. Qe1 {[%clk 0:00:16]}  Nd3 {[%clk 0:00:11]} 39. Qe3 {[%clk 0:00:14]}  Qxe3 {[%clk 0:00:11]} 40. Bxe3 {[%clk 0:00:14]}  Nxf2+ {[%clk 0:00:11]} 41. Rxf2 {[%clk 0:00:14]}  Rxe4 {[%clk 0:00:12]} 42. Bc1 {[%clk 0:00:13]}  Re1+ {[%clk 0:00:11]} 0-1


[Site "https://www.chess.com"]

[Event "Titled Tuesday Blitz August 09 Early 2022"]
[White "Ianov, Viktor"]
[Black "Zhukov, Maksim"]
[WhiteFideId "14102730"]
[BlackFideId "34181790"]
[WhiteElo "2152"]
[BlackElo "1978"]
[Result "1-0"]
[Round "07"]
[TimeControl "180+1"]
[Date "2022.08.09"]
[WhiteClock "0:01:16"]
[BlackClock "0:00:01"]

1. Nf3 {[%clk 0:03:00]}  d5 {[%clk 0:02:58]} 2. g3 {[%clk 0:03:00]}  Nf6 {[%clk 0:02:54]} 3. Bg2 {[%clk 0:03:00]}  Bg4 {[%clk 0:02:55]} 4. c4 {[%clk 0:02:59]}  e6 {[%clk 0:02:54]} 5. Ne5 {[%clk 0:02:59]}  Bh5 {[%clk 0:02:53]} 6. Qb3 {[%clk 0:02:58]}  Qc8 {[%clk 0:02:45]} 7. cxd5 {[%clk 0:02:54]}  exd5 {[%clk 0:02:46]} 8. Bxd5 {[%clk 0:02:52]}  Nxd5 {[%clk 0:02:45]} 9. Qxd5 {[%clk 0:02:51]}  Bd6 {[%clk 0:02:41]} 10. Nc3 {[%clk 0:02:48]}  O-O {[%clk 0:02:40]} 11. d4 {[%clk 0:02:48]}  Qh3 {[%clk 0:02:17]} 12. Qxb7 {[%clk 0:02:41]}  Bxe5 {[%clk 0:02:10]} 13. dxe5 {[%clk 0:02:18]}  Nd7 {[%clk 0:02:07]} 14. Bf4 {[%clk 0:02:13]}  Rab8 {[%clk 0:01:47]} 15. Qxa7 {[%clk 0:02:12]}  Rxb2 {[%clk 0:01:37]} 16. O-O-O {[%clk 0:02:08]}  Rfb8 {[%clk 0:01:28]} 17. Qxc7 {[%clk 0:01:57]}  Nf8 {[%clk 0:01:04]} 18. Rd2 {[%clk 0:01:50]}  Rc8 {[%clk 0:00:19]} 19. Qa5 {[%clk 0:01:46]}  Rxd2 {[%clk 0:00:12]} 20. Bxd2 {[%clk 0:01:44]}  Qg2 {[%clk 0:00:13]} 21. Re1 {[%clk 0:01:34]}  Qxf2 {[%clk 0:00:13]} 22. e6 {[%clk 0:01:34]}  Bg6 {[%clk 0:00:10]} 23. e7 {[%clk 0:01:28]}  Ne6 {[%clk 0:00:10]} 24. Qb5 {[%clk 0:01:25]}  f6 {[%clk 0:00:05]} 25. Qd7 {[%clk 0:01:24]}  Rxc3+ {[%clk 0:00:03]} 26. Bxc3 {[%clk 0:01:22]}  Qe3+ {[%clk 0:00:03]} 27. Kb2 {[%clk 0:01:17]}  Qb6+ {[%clk 0:00:01]} 28. Ka1 {[%clk 0:01:16]} 1-0


[Site "https://www.chess.com"]

[Event "Titled Tuesday Blitz August 09 Early 2022"]
[White "Karttunen, Mika"]
[Black "Carlsson, Ludvig"]
[WhiteFideId "502081"]
[BlackFideId "1727010"]
[WhiteElo "2343"]
[BlackElo "2195"]
[Result "1-0"]
[Round "07"]
[TimeControl "180+1"]
[Date "2022.08.09"]
[WhiteClock "0:00:19"]
[BlackClock "0:00:04"]

1. d4 {[%clk 0:03:00]}  e6 {[%clk 0:02:59]} 2. c4 {[%clk 0:03:00]}  d5 {[%clk 0:02:59]} 3. Nc3 {[%clk 0:03:00]}  Nf6 {[%clk 0:02:59]} 4. cxd5 {[%clk 0:02:56]}  exd5 {[%clk 0:03:00]} 5. Bg5 {[%clk 0:02:56]}  c6 {[%clk 0:03:00]} 6. e3 {[%clk 0:02:54]}  h6 {[%clk 0:03:00]} 7. Bh4 {[%clk 0:02:52]}  Bf5 {[%clk 0:03:01]} 8. Qf3 {[%clk 0:02:49]}  Bg6 {[%clk 0:02:59]} 9. Bxf6 {[%clk 0:02:49]}  Qxf6 {[%clk 0:02:59]} 10. Qxf6 {[%clk 0:02:49]}  gxf6 {[%clk 0:03:00]} 11. Nge2 {[%clk 0:02:40]}  Bd6 {[%clk 0:02:51]} 12. g3 {[%clk 0:02:28]}  a5 {[%clk 0:02:49]} 13. Nf4 {[%clk 0:02:20]}  Nd7 {[%clk 0:02:48]} 14. Kd2 {[%clk 0:02:10]}  h5 {[%clk 0:02:47]} 15. h4 {[%clk 0:02:07]}  Ke7 {[%clk 0:02:46]} 16. Bd3 {[%clk 0:02:07]}  Bxd3 {[%clk 0:02:46]} 17. Kxd3 {[%clk 0:02:03]}  Bxf4 {[%clk 0:02:40]} 18. gxf4 {[%clk 0:01:58]}  Rhg8 {[%clk 0:02:39]} 19. Ne2 {[%clk 0:01:56]}  Rg2 {[%clk 0:02:39]} 20. Raf1 {[%clk 0:01:55]}  Nb6 {[%clk 0:02:33]} 21. Ng3 {[%clk 0:01:52]}  Rh8 {[%clk 0:02:23]} 22. Ke2 {[%clk 0:01:49]}  Rg8 {[%clk 0:02:16]} 23. Kf3 {[%clk 0:01:44]}  R8xg3+ {[%clk 0:02:16]} 24. fxg3 {[%clk 0:01:44]}  Rc2 {[%clk 0:02:10]} 25. Rc1 {[%clk 0:01:41]}  Rxc1 {[%clk 0:02:03]} 26. Rxc1 {[%clk 0:01:40]}  f5 {[%clk 0:02:04]} 27. Rc5 {[%clk 0:01:31]}  a4 {[%clk 0:02:03]} 28. Ra5 {[%clk 0:01:30]}  Kd6 {[%clk 0:02:03]} 29. Ke2 {[%clk 0:01:17]}  Kc7 {[%clk 0:02:00]} 30. Kd3 {[%clk 0:01:12]}  Kb8 {[%clk 0:01:57]} 31. b3 {[%clk 0:01:05]}  axb3 {[%clk 0:01:55]} 32. axb3 {[%clk 0:01:06]}  Kc7 {[%clk 0:01:55]} 33. Kc3 {[%clk 0:01:06]}  Kb8 {[%clk 0:01:54]} 34. Kb4 {[%clk 0:01:06]}  Kc7 {[%clk 0:01:53]} 35. Ra1 {[%clk 0:01:04]}  Nd7 {[%clk 0:01:31]} 36. Ra8 {[%clk 0:01:02]}  Nb8 {[%clk 0:01:31]} 37. Ka4 {[%clk 0:00:54]}  Kc8 {[%clk 0:01:17]} 38. Ra7 {[%clk 0:00:32]}  Kc7 {[%clk 0:01:13]} 39. Ka5 {[%clk 0:00:30]}  Nd7 {[%clk 0:01:10]} 40. Ra8 {[%clk 0:00:30]}  Nb8 {[%clk 0:01:02]} 41. Kb4 {[%clk 0:00:27]}  Na6+ {[%clk 0:00:54]} 42. Kc3 {[%clk 0:00:27]}  Nb8 {[%clk 0:00:54]} 43. b4 {[%clk 0:00:27]}  Kc8 {[%clk 0:00:43]} 44. b5 {[%clk 0:00:27]}  cxb5 {[%clk 0:00:24]} 45. Kb4 {[%clk 0:00:27]}  b6 {[%clk 0:00:23]} 46. Kxb5 {[%clk 0:00:20]}  Kb7 {[%clk 0:00:23]} 47. Ra2 {[%clk 0:00:20]}  Nc6 {[%clk 0:00:20]} 48. Rc2 {[%clk 0:00:19]}  Na7+ {[%clk 0:00:20]} 49. Kb4 {[%clk 0:00:19]}  Nc6+ {[%clk 0:00:16]} 50. Ka4 {[%clk 0:00:20]}  Ne7 {[%clk 0:00:11]} 51. Kb5 {[%clk 0:00:19]}  Nc8 {[%clk 0:00:09]} 52. Rxc8 {[%clk 0:00:19]}  Kxc8 {[%clk 0:00:10]} 53. Kxb6 {[%clk 0:00:19]}  Kd7 {[%clk 0:00:10]} 54. Kc5 {[%clk 0:00:20]}  Ke6 {[%clk 0:00:08]} 55. Kc6 {[%clk 0:00:20]}  f6 {[%clk 0:00:04]} 56. Kc5 {[%clk 0:00:19]} 1-0


[Site "https://www.chess.com"]

[Event "Titled Tuesday Blitz August 09 Early 2022"]
[White "Khripachenko, Alexander"]
[Black "Rohith Krishna S"]
[WhiteFideId "54184975"]
[BlackFideId "46617051"]
[WhiteElo "2233"]
[BlackElo "2118"]
[Result "1/2-1/2"]
[Round "07"]
[TimeControl "180+1"]
[Date "2022.08.09"]
[WhiteClock "0:01:23"]
[BlackClock "0:01:01"]

1. e4 {[%clk 0:02:56]}  e6 {[%clk 0:03:00]} 2. d4 {[%clk 0:02:56]}  d5 {[%clk 0:03:00]} 3. Nd2 {[%clk 0:02:57]}  c5 {[%clk 0:03:00]} 4. Ngf3 {[%clk 0:02:56]}  cxd4 {[%clk 0:02:58]} 5. exd5 {[%clk 0:02:56]}  Qxd5 {[%clk 0:02:55]} 6. Bc4 {[%clk 0:02:56]}  Qd8 {[%clk 0:02:54]} 7. O-O {[%clk 0:02:56]}  Nc6 {[%clk 0:02:54]} 8. Nb3 {[%clk 0:02:56]}  Nf6 {[%clk 0:02:54]} 9. Nbxd4 {[%clk 0:02:55]}  Nxd4 {[%clk 0:02:54]} 10. Nxd4 {[%clk 0:02:56]}  Bc5 {[%clk 0:02:55]} 11. Be3 {[%clk 0:02:52]}  O-O {[%clk 0:02:52]} 12. c3 {[%clk 0:02:50]}  Bb6 {[%clk 0:02:44]} 13. Re1 {[%clk 0:02:47]}  Nd5 {[%clk 0:02:44]} 14. Bd2 {[%clk 0:02:45]}  Qh4 {[%clk 0:02:41]} 15. g3 {[%clk 0:02:42]}  Qf6 {[%clk 0:02:40]} 16. Qe2 {[%clk 0:02:37]}  Bxd4 {[%clk 0:02:38]} 17. cxd4 {[%clk 0:02:36]}  Qxd4 {[%clk 0:02:39]} 18. Rad1 {[%clk 0:02:36]}  Qxb2 {[%clk 0:02:38]} 19. Qf3 {[%clk 0:02:36]}  Qf6 {[%clk 0:02:37]} 20. Bxd5 {[%clk 0:02:34]}  exd5 {[%clk 0:02:37]} 21. Qxf6 {[%clk 0:02:33]}  gxf6 {[%clk 0:02:38]} 22. Bc3 {[%clk 0:02:33]}  Be6 {[%clk 0:02:38]} 23. Bxf6 {[%clk 0:02:32]}  Rfc8 {[%clk 0:02:38]} 24. f4 {[%clk 0:02:26]}  Rc5 {[%clk 0:02:32]} 25. Re5 {[%clk 0:02:24]}  Rc6 {[%clk 0:01:54]} 26. f5 {[%clk 0:02:17]}  Bd7 {[%clk 0:01:50]} 27. Rdxd5 {[%clk 0:02:07]}  Rxf6 {[%clk 0:01:49]} 28. Rxd7 {[%clk 0:02:07]}  Rb8 {[%clk 0:01:46]} 29. g4 {[%clk 0:02:03]}  h6 {[%clk 0:01:43]} 30. Ree7 {[%clk 0:02:03]}  Rc8 {[%clk 0:01:13]} 31. Rxb7 {[%clk 0:01:56]}  Rc2 {[%clk 0:01:13]} 32. Rxa7 {[%clk 0:01:45]}  Rd6 {[%clk 0:01:14]} 33. Rad7 {[%clk 0:01:43]}  Rb6 {[%clk 0:01:11]} 34. Rb7 {[%clk 0:01:38]}  Rd6 {[%clk 0:01:11]} 35. Red7 {[%clk 0:01:32]}  Rf6 {[%clk 0:01:08]} 36. a4 {[%clk 0:01:29]}  Ra2 {[%clk 0:01:08]} 37. h3 {[%clk 0:01:24]}  Rc6 {[%clk 0:01:01]} 38. Rbc7 {[%clk 0:01:23]}  Rb6 {[%clk 0:01:01]} 39. Rb7 {[%clk 0:01:22]}  Rc6 {[%clk 0:01:01]} 40. Rdc7 {[%clk 0:01:23]}  Rd6 {[%clk 0:01:01]} 41. Rd7 {[%clk 0:01:23]}  Rc6 {[%clk 0:01:01]} 1/2-1/2


[Site "https://www.chess.com"]

[Event "Titled Tuesday Blitz August 09 Early 2022"]
[White "Kilic, Eray"]
[Black "Gil Alba, Hector Luis"]
[WhiteFideId "44517173"]
[BlackFideId "3504670"]
[WhiteElo "1776"]
[BlackElo "2331"]
[Result "1-0"]
[Round "07"]
[TimeControl "180+1"]
[Date "2022.08.09"]
[WhiteClock "0:00:16"]
[BlackClock "0:00:06"]

1. e4 {[%clk 0:03:00]}  c5 {[%clk 0:02:48]} 2. Nf3 {[%clk 0:03:00]}  Nc6 {[%clk 0:02:43]} 3. Bb5 {[%clk 0:02:59]}  e6 {[%clk 0:02:42]} 4. O-O {[%clk 0:02:59]}  Nge7 {[%clk 0:02:41]} 5. Re1 {[%clk 0:02:59]}  a6 {[%clk 0:02:40]} 6. Bf1 {[%clk 0:02:59]}  d5 {[%clk 0:02:38]} 7. exd5 {[%clk 0:02:59]}  Nxd5 {[%clk 0:02:38]} 8. Nc3 {[%clk 0:03:00]}  Be7 {[%clk 0:02:37]} 9. d4 {[%clk 0:02:53]}  O-O {[%clk 0:02:31]} 10. Nxd5 {[%clk 0:02:51]}  Qxd5 {[%clk 0:02:28]} 11. c4 {[%clk 0:02:51]}  Qd8 {[%clk 0:02:25]} 12. Be3 {[%clk 0:02:46]}  cxd4 {[%clk 0:02:23]} 13. Nxd4 {[%clk 0:02:46]}  Bd7 {[%clk 0:02:20]} 14. Qb3 {[%clk 0:02:30]}  Nxd4 {[%clk 0:02:17]} 15. Bxd4 {[%clk 0:02:31]}  Bc6 {[%clk 0:02:15]} 16. Rad1 {[%clk 0:02:31]}  Qa5 {[%clk 0:02:09]} 17. a3 {[%clk 0:02:28]}  Ba4 {[%clk 0:02:05]} 18. Qg3 {[%clk 0:02:25]}  Qg5 {[%clk 0:01:59]} 19. Rd3 {[%clk 0:02:09]}  Qxg3 {[%clk 0:01:55]} 20. Rxg3 {[%clk 0:02:10]}  g6 {[%clk 0:01:53]} 21. Bc3 {[%clk 0:02:05]}  Rac8 {[%clk 0:01:49]} 22. Bd3 {[%clk 0:01:33]}  Bb3 {[%clk 0:01:41]} 23. Be4 {[%clk 0:01:34]}  Bxc4 {[%clk 0:01:29]} 24. Bxb7 {[%clk 0:01:34]}  Rcd8 {[%clk 0:01:28]} 25. Be4 {[%clk 0:01:32]}  Rd7 {[%clk 0:01:18]} 26. Bc2 {[%clk 0:01:12]}  Rc8 {[%clk 0:01:11]} 27. h3 {[%clk 0:01:04]}  Bf8 {[%clk 0:01:07]} 28. Rg4 {[%clk 0:01:02]}  Bb5 {[%clk 0:01:02]} 29. a4 {[%clk 0:01:00]}  Bc6 {[%clk 0:00:59]} 30. Bb3 {[%clk 0:01:00]}  Bg7 {[%clk 0:00:56]} 31. Bxg7 {[%clk 0:00:52]}  Kxg7 {[%clk 0:00:55]} 32. Bc4 {[%clk 0:00:52]}  a5 {[%clk 0:00:52]} 33. b3 {[%clk 0:00:51]}  Rb8 {[%clk 0:00:43]} 34. Re5 {[%clk 0:00:49]}  Bd5 {[%clk 0:00:36]} 35. Rd4 {[%clk 0:00:46]}  Rbd8 {[%clk 0:00:33]} 36. f4 {[%clk 0:00:34]}  h6 {[%clk 0:00:29]} 37. Kf2 {[%clk 0:00:32]}  Bxc4 {[%clk 0:00:24]} 38. Rxc4 {[%clk 0:00:31]}  Rd2+ {[%clk 0:00:22]} 39. Re2 {[%clk 0:00:31]}  R2d3 {[%clk 0:00:20]} 40. b4 {[%clk 0:00:29]}  axb4 {[%clk 0:00:18]} 41. Rxb4 {[%clk 0:00:30]}  R8d4 {[%clk 0:00:18]} 42. Reb2 {[%clk 0:00:29]}  Rxb4 {[%clk 0:00:16]} 43. Rxb4 {[%clk 0:00:30]}  Ra3 {[%clk 0:00:15]} 44. Rc4 {[%clk 0:00:28]}  Kf6 {[%clk 0:00:15]} 45. g3 {[%clk 0:00:27]}  g5 {[%clk 0:00:15]} 46. fxg5+ {[%clk 0:00:27]}  hxg5 {[%clk 0:00:15]} 47. Kg2 {[%clk 0:00:27]}  Kg6 {[%clk 0:00:14]} 48. Rb4 {[%clk 0:00:27]}  f5 {[%clk 0:00:13]} 49. Rb6 {[%clk 0:00:22]}  Kf6 {[%clk 0:00:13]} 50. Ra6 {[%clk 0:00:23]}  f4 {[%clk 0:00:12]} 51. gxf4 {[%clk 0:00:20]}  gxf4 {[%clk 0:00:12]} 52. Ra8 {[%clk 0:00:21]}  e5 {[%clk 0:00:11]} 53. a5 {[%clk 0:00:20]}  e4 {[%clk 0:00:10]} 54. a6 {[%clk 0:00:17]}  Ra2+ {[%clk 0:00:09]} 55. Kf1 {[%clk 0:00:17]}  f3 {[%clk 0:00:06]} 56. a7 {[%clk 0:00:16]} 1-0


[Site "https://www.chess.com"]

[Event "Titled Tuesday Blitz August 09 Early 2022"]
[White "Kiseljova, Marya"]
[Black "Mouhamad, Joachim"]
[WhiteFideId "4155009"]
[BlackFideId "656410"]
[WhiteElo "1697"]
[BlackElo "2147"]
[Result "0-1"]
[Round "07"]
[TimeControl "180+1"]
[Date "2022.08.09"]
[WhiteClock "0:00:05"]
[BlackClock "0:00:39"]

1. d4 {[%clk 0:03:00]}  Nf6 {[%clk 0:02:58]} 2. c4 {[%clk 0:03:01]}  g6 {[%clk 0:02:58]} 3. Nc3 {[%clk 0:03:01]}  d5 {[%clk 0:02:57]} 4. cxd5 {[%clk 0:03:00]}  Nxd5 {[%clk 0:02:58]} 5. Bd2 {[%clk 0:03:01]}  Bg7 {[%clk 0:02:54]} 6. e4 {[%clk 0:03:01]}  Nxc3 {[%clk 0:02:53]} 7. Bxc3 {[%clk 0:03:02]}  c5 {[%clk 0:02:51]} 8. d5 {[%clk 0:02:57]}  Bxc3+ {[%clk 0:02:49]} 9. bxc3 {[%clk 0:02:58]}  O-O {[%clk 0:02:48]} 10. Qd2 {[%clk 0:02:37]}  Nd7 {[%clk 0:02:30]} 11. Nf3 {[%clk 0:02:31]}  Nf6 {[%clk 0:02:15]} 12. Qf4 {[%clk 0:02:16]}  Qd6 {[%clk 0:02:08]} 13. e5 {[%clk 0:01:56]}  Nxd5 {[%clk 0:02:05]} 14. exd6 {[%clk 0:01:52]}  Nxf4 {[%clk 0:02:05]} 15. dxe7 {[%clk 0:01:35]}  Re8 {[%clk 0:02:05]} 16. O-O-O {[%clk 0:01:32]}  Be6 {[%clk 0:01:52]} 17. Kb2 {[%clk 0:01:20]}  Rxe7 {[%clk 0:01:46]} 18. Bb5 {[%clk 0:00:52]}  a6 {[%clk 0:01:41]} 19. Ba4 {[%clk 0:00:50]}  b5 {[%clk 0:01:40]} 20. Bc2 {[%clk 0:00:47]}  Nxg2 {[%clk 0:01:30]} 21. Ne5 {[%clk 0:00:35]}  Nf4 {[%clk 0:01:26]} 22. Nc6 {[%clk 0:00:20]}  Rc7 {[%clk 0:01:20]} 23. Na5 {[%clk 0:00:19]}  Kg7 {[%clk 0:01:13]} 24. Be4 {[%clk 0:00:19]}  Rb8 {[%clk 0:01:08]} 25. h4 {[%clk 0:00:18]}  h5 {[%clk 0:01:07]} 26. Rhg1 {[%clk 0:00:16]}  c4 {[%clk 0:01:01]} 27. Rg5 {[%clk 0:00:13]}  b4 {[%clk 0:01:00]} 28. cxb4 {[%clk 0:00:13]}  Rxb4+ {[%clk 0:01:00]} 29. Kc3 {[%clk 0:00:13]}  Ra4 {[%clk 0:00:59]} 30. Rd2 {[%clk 0:00:07]}  f6 {[%clk 0:00:53]} 31. Bc6 {[%clk 0:00:05]}  Rxc6 {[%clk 0:00:47]} 32. Rxg6+ {[%clk 0:00:04]}  Kxg6 {[%clk 0:00:45]} 33. Nxc6 {[%clk 0:00:05]}  Nd5+ {[%clk 0:00:39]} 34. Kc2 {[%clk 0:00:03]}  Rxa2+ {[%clk 0:00:39]} 35. Kd1 {[%clk 0:00:03]}  Rxd2+ {[%clk 0:00:39]} 36. Kxd2 {[%clk 0:00:04]}  c3+ {[%clk 0:00:40]} 37. Kc2 {[%clk 0:00:04]}  Bf5+ {[%clk 0:00:40]} 38. Kb3 {[%clk 0:00:03]}  c2 {[%clk 0:00:40]} 39. Nd4 {[%clk 0:00:04]}  c1=Q {[%clk 0:00:39]} 40. Nxf5 {[%clk 0:00:05]}  Kxf5 {[%clk 0:00:39]} 0-1


[Site "https://www.chess.com"]

[Event "Titled Tuesday Blitz August 09 Early 2022"]
[White "Korchmar, Vasiliy"]
[Black "Antonio, Rogelio Jr"]
[WhiteFideId "24131750"]
[BlackFideId "5200032"]
[WhiteElo "2370"]
[BlackElo "2415"]
[Result "0-1"]
[Round "07"]
[TimeControl "180+1"]
[Date "2022.08.09"]
[WhiteClock "0:00:01"]
[BlackClock "0:00:24"]

1. e4 {[%clk 0:03:00]}  c6 {[%clk 0:02:58]} 2. d4 {[%clk 0:03:01]}  d5 {[%clk 0:02:58]} 3. e5 {[%clk 0:03:01]}  c5 {[%clk 0:02:57]} 4. dxc5 {[%clk 0:03:02]}  Nc6 {[%clk 0:02:57]} 5. Bb5 {[%clk 0:03:00]}  Qa5+ {[%clk 0:02:43]} 6. Nc3 {[%clk 0:03:00]}  e6 {[%clk 0:02:43]} 7. Be3 {[%clk 0:02:59]}  a6 {[%clk 0:02:37]} 8. Bxc6+ {[%clk 0:02:58]}  bxc6 {[%clk 0:02:37]} 9. a3 {[%clk 0:02:58]}  Ne7 {[%clk 0:02:26]} 10. b4 {[%clk 0:02:57]}  Qc7 {[%clk 0:02:26]} 11. Nf3 {[%clk 0:02:56]}  Nf5 {[%clk 0:02:26]} 12. Bd4 {[%clk 0:02:56]}  a5 {[%clk 0:02:20]} 13. b5 {[%clk 0:02:52]}  a4 {[%clk 0:02:01]} 14. O-O {[%clk 0:02:38]}  Qa5 {[%clk 0:02:00]} 15. Rb1 {[%clk 0:02:32]}  Be7 {[%clk 0:01:58]} 16. Rb4 {[%clk 0:02:30]}  cxb5 {[%clk 0:01:51]} 17. Nxb5 {[%clk 0:02:25]}  Ba6 {[%clk 0:01:42]} 18. c4 {[%clk 0:01:09]}  O-O {[%clk 0:01:39]} 19. Nd6 {[%clk 0:00:54]}  dxc4 {[%clk 0:01:27]} 20. Rxa4 {[%clk 0:00:43]}  Qc7 {[%clk 0:01:19]} 21. g4 {[%clk 0:00:27]}  Nxd4 {[%clk 0:00:51]} 22. Qxd4 {[%clk 0:00:28]}  Qc6 {[%clk 0:00:51]} 23. Rxa6 {[%clk 0:00:18]}  Rxa6 {[%clk 0:00:48]} 24. Nd2 {[%clk 0:00:18]}  Ra4 {[%clk 0:00:43]} 25. N2xc4 {[%clk 0:00:12]}  Qa6 {[%clk 0:00:41]} 26. Rc1 {[%clk 0:00:11]}  f6 {[%clk 0:00:30]} 27. exf6 {[%clk 0:00:07]}  Rxf6 {[%clk 0:00:26]} 28. Qe5 {[%clk 0:00:06]}  Bxd6 {[%clk 0:00:24]} 29. Nxd6 {[%clk 0:00:01]}  Rxg4+ {[%clk 0:00:24]} 0-1


[Site "https://www.chess.com"]